bitfinex/quotes_BTCUSD_20250902
["timestamp","ask_amount","ask_price","bid_price","bid_amount"]
[1756837051103,0.18676644,110640.0,110630.0,0.00640092]
[1756837051300,0.59932439,110640.0,110630.0,0.00640092]
[1756837051942,0.18676644,110640.0,110630.0,0.51087486]
[1756837052163,0.18676644,110640.0,110630.0,0.09831691]
[1756837052566,0.18676644,110640.0,110630.0,0.25611691]
[1756837053010,0.18676644,110640.0,110630.0,0.28324838]
[1756837053223,0.59932439,110640.0,110630.0,0.28320838]
[1756837053432,0.59932439,110640.0,110630.0,0.12548838]
[1756837053639,0.18676644,110640.0,110630.0,0.12548838]
[1756837053850,0.59932439,110640.0,110630.0,0.12548838]
[1756837054238,0.59932439,110640.0,110630.0,0.03357239]
[1756837054473,0.59932439,110640.0,110630.0,0.00640092]
[1756837054687,0.59932439,110640.0,110630.0,0.09831691]
[1756837054688,0.18676644,110640.0,110630.0,0.09831691]
[1756837055128,0.18676644,110640.0,110630.0,0.12548881]
[1756837055340,0.18676644,110640.0,110630.0,0.28316881]
[1756837055548,0.59932439,110640.0,110630.0,0.28316881]
[1756837056141,0.18676644,110640.0,110630.0,0.28316881]
[1756837056420,0.59932439,110640.0,110630.0,0.28316881]
[1756837056831,0.18676644,110640.0,110630.0,0.69572676]
[1756837057076,0.18676644,110640.0,110630.0,0.69564676]
[1756837057964,0.18676644,110640.0,110630.0,0.28308881]
[1756837058434,0.18676644,110640.0,110630.0,0.12548881]
[1756837058654,0.59932439,110640.0,110630.0,0.29225968]
[1756837059097,0.18676644,110640.0,110630.0,0.13465968]
[1756837059320,0.59932439,110640.0,110630.0,0.29221968]
[1756837059773,0.18676644,110640.0,110630.0,0.29221968]
[1756837060037,0.59932439,110640.0,110630.0,0.13465968]
[1756837060264,0.59932439,110640.0,110630.0,0.29221968]
[1756837061709,0.59932439,110640.0,110630.0,0.28300881]
[1756837062277,0.18676644,110640.0,110630.0,0.28300881]
[1756837062722,0.59932439,110640.0,110630.0,0.12548881]
[1756837062948,0.60142439,110640.0,110630.0,0.28284881]
[1756837063409,0.60142439,110640.0,110630.0,0.03048282]
[1756837063635,0.60142439,110640.0,110630.0,0.18796282]
[1756837063894,0.18886644,110640.0,110630.0,0.18796282]
[1756837064120,0.60142439,110640.0,110630.0,0.18796282]
[1756837064364,0.60142439,110640.0,110630.0,0.03048282]
[1756837064590,0.60142439,110640.0,110630.0,0.18800282]
[1756837065060,0.60142439,110640.0,110630.0,0.03048282]
[1756837065285,0.60142439,110640.0,110630.0,0.02842282]
[1756837065286,1.01703234,110640.0,110630.0,0.02842282]
[1756837065505,1.01703234,110640.0,110630.0,0.18582282]
[1756837065732,0.60142439,110640.0,110630.0,0.18798282]
[1756837066166,0.59932439,110640.0,110630.0,0.19107282]
[1756837066387,0.18886644,110640.0,110630.0,0.19107282]
[1756837066590,0.18676644,110640.0,110630.0,0.19107282]
[1756837066804,0.59932439,110640.0,110630.0,0.19107282]
[1756837067735,0.18676644,110640.0,110630.0,0.19107282]
[1756837067955,0.59932439,110640.0,110630.0,0.19107282]
[1756837069029,0.59932439,110640.0,110630.0,0.28298881]
[1756837071038,0.006,110640.0,110630.0,0.48471041]
[1756837071269,0.006,110640.0,110630.0,2.15324636]
[1756837071757,0.006,110640.0,110630.0,2.14068841]
[1756837071991,0.004,110640.0,110630.0,2.14068841]
[1756837072227,0.004,110640.0,110630.0,2.14268841]
[1756837072485,0.004,110640.0,110630.0,1.72989046]
[1756837072714,0.004,110640.0,110630.0,1.63702836]
[1756837072924,0.004,110640.0,110630.0,1.68872702]
[1756837073393,0.004,110640.0,110630.0,1.53156702]
[1756837073620,0.18075135,110650.0,110640.0,0.52076644]
[1756837073837,0.18250747,110650.0,110640.0,1.08896038]
[1756837074086,0.18250747,110650.0,110640.0,1.09421038]
[1756837074293,0.18250747,110650.0,110640.0,1.50676833]
[1756837074526,0.18250747,110650.0,110640.0,1.32600189]
[1756837074753,0.18460747,110650.0,110640.0,1.48075189]
[1756837074992,0.18485135,110650.0,110640.0,1.66460833]
[1756837075222,0.18275135,110650.0,110640.0,1.66460833]
[1756837075480,0.18450747,110650.0,110640.0,1.66460833]
[1756837075709,0.18450747,110650.0,110640.0,1.26993999]
[1756837076130,0.18275135,110650.0,110640.0,1.26985999]
[1756837076349,0.18275135,110650.0,110640.0,1.08905355]
[1756837076559,0.18275135,110650.0,110640.0,1.26981999]
[1756837077215,0.18275135,110650.0,110640.0,1.08905355]
[1756837077423,0.18275135,110650.0,110640.0,0.93133355]
[1756837077628,0.18275135,110650.0,110640.0,1.08901355]
[1756837078513,0.18485135,110650.0,110640.0,1.08893355]
[1756837078752,0.18485135,110650.0,110640.0,1.11610167]
[1756837079619,0.18275135,110650.0,110640.0,1.11610167]
[1756837080259,0.18275135,110650.0,110640.0,1.29686811]
[1756837080728,0.002,110650.0,110640.0,1.29686811]
[1756837080943,0.002,110650.0,110640.0,1.74725449]
[1756837081404,0.002,110650.0,110640.0,1.79595315]
[1756837082981,0.002,110650.0,110640.0,2.19595315]
[1756837084051,0.002,110650.0,110640.0,2.22199315]
[1756837084265,0.002,110650.0,110640.0,2.23811659]
[1756837084703,0.002,110650.0,110640.0,2.08051659]
[1756837085151,0.002,110650.0,110640.0,2.07951659]
[1756837085368,0.002,110650.0,110640.0,1.35390147]
[1756837085617,0.18075011,110650.0,110640.0,1.53776049]
[1756837085844,0.18285011,110650.0,110640.0,1.58583521]
[1756837086069,0.18485011,110650.0,110640.0,1.74315521]
[1756837086285,0.18485011,110650.0,110640.0,1.42600759]
[1756837086551,0.18485011,110650.0,110640.0,1.33464647]
[1756837086811,0.18285011,110650.0,110640.0,1.13271049]
[1756837087023,0.18275011,110650.0,110640.0,1.31856693]
[1756837087474,0.002,110650.0,110640.0,1.74601449]
[1756837087767,0.002,110650.0,110640.0,1.79467159]
[1756837088018,0.002,110650.0,110640.0,1.79567159]
[1756837089236,0.002,110650.0,110640.0,1.36610403]
[1756837089475,0.18275011,110650.0,110640.0,1.36610403]
[1756837089735,0.002,110650.0,110640.0,1.36610403]
[1756837089971,0.18275011,110650.0,110640.0,1.20886403]
[1756837090204,0.18982623,110650.0,110640.0,0.70198293]
[1756837090423,0.18807011,110650.0,110640.0,1.13143049]
[1756837090904,0.18807011,110650.0,110640.0,0.97419049]
[1756837091190,0.18807011,110650.0,110640.0,0.18380411]
[1756837091442,0.18807011,110650.0,110640.0,0.34108411]
[1756837091688,0.18807011,110650.0,110640.0,0.27736411]
[1756837091961,0.18807011,110650.0,110640.0,0.27636411]
[1756837091962,0.18607011,110650.0,110640.0,0.27636411]
[1756837092234,0.18807011,110650.0,110640.0,0.27636411]
[1756837092486,0.18607011,110650.0,110640.0,0.27636411]
[1756837092727,0.18907011,110650.0,110640.0,0.27636411]
[1756837093804,0.19007011,110650.0,110640.0,0.15724]
[1756837094320,0.18076644,110640.0,110630.0,0.02842238]
[1756837094604,0.18076644,110640.0,110630.0,0.27753837]
[1756837094605,0.18252256,110640.0,110630.0,0.27753837]
[1756837094833,0.18784256,110640.0,110630.0,0.27753837]
[1756837095067,0.18608644,110640.0,110630.0,0.27753837]
[1756837095281,0.18608644,110640.0,110630.0,0.12033837]
[1756837095506,0.18608644,110640.0,110630.0,0.27757837]
[1756837095950,0.18808644,110640.0,110630.0,0.27757837]
[1756837097079,0.18808644,110640.0,110630.0,0.12033837]
[1756837097271,0.18808644,110640.0,110630.0,0.02842238]
[1756837097532,0.18808644,110640.0,110630.0,0.15837092]
[1756837098223,0.18608644,110640.0,110630.0,0.15837092]
[1756837098454,0.19008644,110640.0,110630.0,0.15837092]
[1756837098712,0.18708644,110640.0,110630.0,0.15837092]
[1756837099300,0.19008644,110640.0,110630.0,0.15837092]
[1756837099829,0.18908644,110640.0,110630.0,0.15837092]
[1756837100089,0.19008644,110640.0,110630.0,0.15837092]
[1756837101049,0.85872668,110640.0,110630.0,0.00125092]
[1756837101291,0.85872668,110640.0,110630.0,0.15853092]
[1756837101927,0.19008644,110640.0,110630.0,0.15853092]
[1756837104888,0.85872668,110640.0,110630.0,0.15853092]
[1756837105679,0.19008644,110640.0,110630.0,0.15853092]
[1756837105964,0.85872668,110640.0,110630.0,0.15853092]
[1756837107667,0.85872668,110640.0,110630.0,0.15817092]
[1756837107914,0.85872668,110640.0,110630.0,0.00125092]
[1756837108136,0.88343904,110640.0,110630.0,0.00125092]
[1756837108366,1.31535503,110640.0,110630.0,0.00125092]
[1756837109226,1.47135503,110640.0,110630.0,0.00125092]
[1756837109653,1.47035503,110640.0,110630.0,0.00125092]
[1756837110049,1.47435503,110640.0,110630.0,0.00125092]
[1756837110459,1.47635503,110640.0,110630.0,0.00125092]
[1756837110673,1.47635503,110640.0,110630.0,1e-08]
[1756837111363,0.18079913,110620.0,110610.0,0.0004]
[1756837111579,1.00831549,110620.0,110610.0,0.0004]
[1756837111803,1.00866937,110620.0,110610.0,0.0004]
[1756837112057,0.18290913,110620.0,110610.0,0.0004]
[1756837112293,0.85651549,110620.0,110610.0,0.0004]
[1756837112506,0.85475937,110620.0,110610.0,0.0004]
[1756837112726,0.85788669,110620.0,110610.0,0.0004]
[1756837113794,0.85888669,110620.0,110610.0,0.0004]
[1756837114636,0.85588669,110620.0,110610.0,0.0004]
[1756837115004,0.85988669,110620.0,110610.0,0.0004]
[1756837115207,0.85488669,110620.0,110610.0,0.0004]
[1756837115411,0.94680268,110620.0,110610.0,0.0004]
[1756837115592,0.18081547,110610.0,110600.0,1e-08]
[1756837115804,1.26063144,110610.0,110600.0,1e-08]
[1756837115995,1.26098532,110610.0,110600.0,1e-08]
[1756837116213,1.28569768,110610.0,110600.0,1e-08]
[1756837116656,1.28577768,110610.0,110600.0,1e-08]
[1756837117225,1.28569768,110610.0,110600.0,1e-08]
[1756837117497,1.26298532,110610.0,110600.0,1e-08]
[1756837117706,0.34001547,110610.0,110600.0,0.00511001]
[1756837117915,0.7550124,110610.0,110600.0,0.00198001]
[1756837118359,0.5978124,110610.0,110600.0,0.00198001]
[1756837118589,0.7640824,110610.0,110600.0,1e-08]
[1756837118802,0.5978124,110610.0,110600.0,0.00199001]
[1756837118986,0.7590124,110610.0,110600.0,0.00199001]
[1756837119203,0.7530124,110610.0,110600.0,0.00199001]
[1756837119409,0.7550124,110610.0,110600.0,0.00199001]
[1756837119639,1.0153303,110610.0,110600.0,0.00199001]
[1756837119831,1.0133303,110610.0,110600.0,0.00199001]
[1756837120063,1.0143303,110610.0,110600.0,0.00199001]
[1756837120256,0.18792547,110610.0,110600.0,0.00199001]
[1756837120470,0.34293547,110610.0,110600.0,0.00498001]
[1756837120706,0.34493547,110610.0,110600.0,0.00199001]
[1756837120921,0.34493547,110610.0,110600.0,1e-08]
[1756837121137,1.0141403,110610.0,110600.0,1e-08]
[1756837121351,1.0171703,110610.0,110600.0,1e-08]
[1756837122401,0.8550203,110610.0,110600.0,0.00498001]
[1756837122541,0.18581547,110610.0,110600.0,0.00498001]
[1756837123155,0.18781547,110610.0,110600.0,0.00498001]
[1756837123355,0.18781547,110610.0,110600.0,0.00199001]
[1756837123957,0.34517547,110610.0,110600.0,0.00199001]
[1756837124382,0.34517547,110610.0,110600.0,1e-08]
[1756837124558,0.34820547,110610.0,110600.0,1e-08]
[1756837125054,0.34517547,110610.0,110600.0,0.00199001]
[1756837125551,0.34820547,110610.0,110600.0,1e-08]
[1756837128168,0.18781547,110610.0,110600.0,0.00199001]
[1756837128387,0.18581547,110610.0,110600.0,0.00498001]
[1756837128860,0.34305547,110610.0,110600.0,0.00498001]
[1756837129298,0.19084547,110610.0,110600.0,1e-08]
[1756837129699,0.18781547,110610.0,110600.0,0.00199001]
[1756837130487,0.18581547,110610.0,110600.0,0.00498001]
[1756837130887,0.18781547,110610.0,110600.0,0.00199001]
[1756837131556,0.19084547,110610.0,110600.0,1e-08]
[1756837131772,0.18781547,110610.0,110600.0,0.00498001]
[1756837131990,0.34505547,110610.0,110600.0,0.00498001]
[1756837132204,0.18781547,110610.0,110600.0,0.00498001]
[1756837132434,0.18581547,110610.0,110600.0,0.00498001]
[1756837134271,0.18581547,110610.0,110600.0,0.76610083]
[1756837134475,0.18581547,110610.0,110600.0,0.92330083]
[1756837135274,0.18581547,110610.0,110600.0,0.254096]
[1756837136239,0.18581547,110610.0,110600.0,0.76610083]
[1756837136450,0.18581547,110610.0,110600.0,0.92330083]
[1756837136937,0.18581547,110610.0,110600.0,0.94419965]
[1756837139180,0.005,110610.0,110600.0,1.12503147]
[1756837139387,0.18581547,110610.0,110600.0,1.12503147]
[1756837139603,0.18581547,110610.0,110600.0,0.86830194]
[1756837139826,0.005,110610.0,110600.0,1.28077724]
[1756837140038,0.005,110610.0,110600.0,1.30592724]
[1756837140483,0.005,110610.0,110600.0,1.34680171]
[1756837140701,0.005,110610.0,110600.0,1.37397692]
[1756837140915,0.005,110610.0,110600.0,1.21681692]
[1756837141135,0.18481547,110610.0,110600.0,0.6235098]
[1756837141370,0.18481547,110610.0,110600.0,0.93623162]
[1756837141591,0.18481547,110610.0,110600.0,0.7553998]
[1756837141810,0.18081547,110610.0,110600.0,0.93623162]
[1756837142560,0.18281547,110610.0,110600.0,0.93723162]
[1756837143678,0.002,110610.0,110600.0,0.93723162]
[1756837143895,0.002,110610.0,110600.0,1.68970692]
[1756837144119,0.002,110610.0,110600.0,1.71485692]
[1756837144796,0.002,110610.0,110600.0,1.76351402]
[1756837146825,0.002,110610.0,110600.0,1.60647402]
[1756837147038,0.002,110610.0,110600.0,1.76343402]
[1756837147634,0.002,110610.0,110600.0,2.00647402]
[1756837147843,0.001089,110610.0,110600.0,1.72580872]
[1756837148459,0.001089,110610.0,110600.0,2.13828402]
[1756837150032,0.001089,110610.0,110600.0,2.16281402]
[1756837150488,0.001089,110610.0,110600.0,2.11415692]
[1756837150882,0.001089,110610.0,110600.0,2.11315692]
[1756837151097,0.001089,110610.0,110600.0,2.17797902]
[1756837151306,0.00012732,110620.0,110610.0,0.20175429]
[1756837151516,0.00012732,110620.0,110610.0,1.57906183]
[1756837151724,0.00012732,110620.0,110610.0,1.58405183]
[1756837151943,0.00012732,110620.0,110610.0,1.93539087]
[1756837152364,0.00012732,110620.0,110610.0,2.36474297]
[1756837153210,0.00112732,110620.0,110610.0,2.52370297]
[1756837153418,0.00112732,110620.0,110610.0,2.36674297]
[1756837153628,0.00112732,110620.0,110610.0,1.55940424]
[1756837153827,0.00112732,110620.0,110610.0,1.71636424]
[1756837154039,0.00112732,110620.0,110610.0,1.56140424]
[1756837154254,0.00112732,110620.0,110610.0,1.71836424]
[1756837154821,0.00112732,110620.0,110610.0,1.74553167]
[1756837155018,0.00112732,110620.0,110610.0,1.58857167]
[1756837155222,0.00112732,110620.0,110610.0,1.74553167]
[1756837156360,0.00112732,110620.0,110610.0,1.68070957]
[1756837156559,0.00112732,110620.0,110610.0,1.52374957]
[1756837156763,0.00112732,110620.0,110610.0,1.69877957]
[1756837158471,0.00112732,110620.0,110610.0,1.51732957]
[1756837158857,0.00112732,110620.0,110610.0,1.67424957]
[1756837159088,0.00112732,110620.0,110610.0,1.51732957]
[1756837159310,0.00112732,110620.0,110610.0,1.49639075]
[1756837159569,0.00327732,110620.0,110610.0,1.65035075]
[1756837159783,0.00327732,110620.0,110610.0,1.71990096]
[1756837159989,0.00112732,110620.0,110610.0,1.67424957]
[1756837161247,0.00112732,110620.0,110610.0,1.08793771]
[1756837161473,0.00327732,110620.0,110610.0,1.7199162]
[1756837161692,0.00327732,110620.0,110610.0,1.7018062]
[1756837161958,0.00327732,110620.0,110610.0,1.11549434]
[1756837162179,0.00327732,110620.0,110610.0,1.7047662]
[1756837162580,0.00327732,110620.0,110610.0,1.7018062]
[1756837162794,0.00327732,110620.0,110610.0,1.27241434]
[1756837163000,0.00327732,110620.0,110610.0,1.7018062]
[1756837163432,0.18407645,110620.0,110610.0,1.5448862]
[1756837163640,0.18700645,110620.0,110610.0,1.2997762]
[1756837164066,0.00620732,110620.0,110610.0,1.2997762]
[1756837164287,0.18700645,110620.0,110610.0,1.2997762]
[1756837164752,0.00620732,110620.0,110610.0,1.2997762]
[1756837164931,0.18700645,110620.0,110610.0,1.2997762]
[1756837166836,0.00620732,110620.0,110610.0,0.87038434]
[1756837167065,0.00620732,110620.0,110610.0,1.2997762]
[1756837167270,0.00327732,110620.0,110610.0,0.87241434]
[1756837167479,0.18700645,110620.0,110610.0,0.87038434]
[1756837167680,0.00620732,110620.0,110610.0,1.2997762]
[1756837168093,0.18407645,110620.0,110610.0,1.3018062]
[1756837170582,0.18700645,110620.0,110610.0,1.18268073]
[1756837170783,0.18700645,110620.0,110610.0,1.02576073]
[1756837171027,0.18700645,110620.0,110610.0,0.23543005]
[1756837171216,0.18700645,110620.0,110610.0,0.31651599]
[1756837171666,0.18700645,110620.0,110610.0,0.15963599]
[1756837171874,0.18700645,110620.0,110610.0,0.31651599]
[1756837172561,0.18700645,110620.0,110610.0,0.74590785]
[1756837173096,0.18700645,110620.0,110610.0,0.31651599]
[1756837175663,0.18407645,110620.0,110610.0,0.73106002]
[1756837175877,0.18407645,110620.0,110610.0,0.91483549]
[1756837176074,0.18192645,110620.0,110610.0,0.91483549]
[1756837176280,0.00112732,110620.0,110610.0,0.93577431]
[1756837176500,0.00112732,110620.0,110610.0,1.68828834]
[1756837176637,0.00112732,110620.0,110610.0,1.32440094]
[1756837177822,0.00112732,110620.0,110610.0,1.73691497]
[1756837178246,0.00112732,110620.0,110610.0,1.68828834]
[1756837178486,0.00112732,110620.0,110610.0,0.86326028]
[1756837178692,0.00112732,110620.0,110610.0,1.75311044]
[1756837180370,0.00112732,110620.0,110610.0,2.15311044]
[1756837181317,0.00314732,110620.0,110610.0,1.74059641]
[1756837181542,0.00314732,110620.0,110610.0,1.67577431]
[1756837181747,0.00314732,110620.0,110610.0,1.74263605]
[1756837181963,0.00112732,110620.0,110610.0,1.74263605]
[1756837182131,0.00112732,110620.0,110610.0,1.34263605]
[1756837182539,0.18192645,110620.0,110610.0,1.18575605]
[1756837182716,0.18192645,110620.0,110610.0,1.34263605]
[1756837183897,0.18192645,110620.0,110610.0,1.3698071]
[1756837184442,0.18394645,110620.0,110610.0,1.3698071]
[1756837184886,0.18715645,110620.0,110610.0,1.14491281]
[1756837185090,0.18715645,110620.0,110610.0,1.16585163]
[1756837185914,0.18715645,110620.0,110610.0,0.2564976]
[1756837186128,0.18715645,110620.0,110610.0,0.74992884]
[1756837187469,0.18715645,110620.0,110610.0,0.33741481]
[1756837187667,0.18715645,110620.0,110610.0,0.74992884]
[1756837189357,0.18715645,110620.0,110610.0,0.93074431]
[1756837189739,0.18715645,110620.0,110610.0,0.74992884]
[1756837189966,0.18394645,110620.0,110610.0,0.75191884]
[1756837190149,0.18394645,110620.0,110610.0,0.93273431]
[1756837190691,0.18394645,110620.0,110610.0,0.93579431]
[1756837191414,0.18192645,110620.0,110610.0,0.93579431]
[1756837191857,0.18192645,110620.0,110610.0,0.96296821]
[1756837192216,0.00112732,110620.0,110610.0,0.96296821]
[1756837192515,0.00112732,110620.0,110610.0,1.01171995]
[1756837192697,0.18192645,110620.0,110610.0,1.01171995]
[1756837195666,0.00112732,110620.0,110610.0,1.01171995]
[1756837195996,0.00112732,110620.0,110610.0,1.76423398]
[1756837196176,0.00112732,110620.0,110610.0,1.71548224]
[1756837198353,0.00112732,110620.0,110610.0,1.55864224]
[1756837198550,0.00112732,110620.0,110610.0,1.71544224]
[1756837199106,0.00112732,110620.0,110610.0,2.11544224]
[1756837200349,0.00112732,110620.0,110610.0,1.95864224]
[1756837200582,0.18192645,110620.0,110610.0,1.29041418]
[1756837200754,0.18192645,110620.0,110610.0,1.54612821]
[1756837201309,0.18192645,110620.0,110610.0,1.70292821]
[1756837201840,0.00112732,110620.0,110610.0,1.72103821]
[1756837202271,0.18192645,110620.0,110610.0,1.72103821]
[1756837202476,0.18394645,110620.0,110610.0,1.72103821]
[1756837202658,0.18394645,110620.0,110610.0,1.56423821]
[1756837202861,0.18394645,110620.0,110610.0,1.72103821]
[1756837203274,0.00314732,110620.0,110610.0,1.72103821]
[1756837203656,0.00112732,110620.0,110610.0,1.72103821]
[1756837204203,0.18394645,110620.0,110610.0,1.62600031]
[1756837204352,0.18394645,110620.0,110610.0,1.78582031]
[1756837204787,0.18394645,110620.0,110610.0,1.72099821]
[1756837205187,0.00112732,110620.0,110610.0,1.72099821]
[1756837205591,0.00112732,110620.0,110610.0,1.78582031]
[1756837206465,0.18394645,110620.0,110610.0,1.21654628]
[1756837206670,0.18394645,110620.0,110610.0,1.72099821]
[1756837206878,0.18394645,110620.0,110610.0,0.96784871]
[1756837207100,0.59967048,110620.0,110610.0,0.41330138]
[1756837207316,0.59967048,110620.0,110610.0,0.23560256]
[1756837207556,0.59967048,110620.0,110610.0,0.39236256]
[1756837207993,0.18715645,110620.0,110610.0,0.39236256]
[1756837208411,0.18715645,110620.0,110610.0,0.38836256]
[1756837208627,1.01118451,110620.0,110610.0,0.18280989]
[1756837208867,1.01118451,110620.0,110600.0,1e-08]
[1756837208868,0.18081547,110610.0,110600.0,1e-08]
[1756837209070,0.59813562,110610.0,110600.0,0.248676]
[1756837209285,0.5984895,110610.0,110600.0,0.091916]
[1756837209465,0.5984895,110610.0,110600.0,0.15676001]
[1756837210105,0.18597547,110610.0,110600.0,0.15676001]
[1756837210292,0.5984895,110610.0,110600.0,0.15676001]
[1756837211401,0.5984895,110610.0,110600.0,0.248676]
[1756837211402,0.18897547,110610.0,110600.0,0.248676]
[1756837212146,0.18692547,110610.0,110600.0,0.66324003]
[1756837212351,0.18997547,110610.0,110600.0,0.66324003]
[1756837212556,0.18997547,110610.0,110600.0,0.66119003]
[1756837213537,0.18997547,110610.0,110600.0,0.248676]
[1756837213787,0.18692547,110610.0,110600.0,0.250726]
[1756837214204,0.18997547,110610.0,110600.0,0.248676]
[1756837214409,0.18997547,110610.0,110600.0,0.248636]
[1756837216467,0.18997547,110610.0,110600.0,0.091916]
[1756837216647,0.60257861,110610.0,110600.0,0.248676]
[1756837217262,0.18997547,110610.0,110600.0,0.248676]
[1756837217466,0.60257861,110610.0,110600.0,0.248636]
[1756837217673,0.18997547,110610.0,110600.0,0.248636]
[1756837219841,0.60257861,110610.0,110600.0,0.15672001]
[1756837220045,0.60249548,110610.0,110600.0,0.15672001]
[1756837220251,0.18989234,110610.0,110600.0,0.15672001]
[1756837220659,0.18684234,110610.0,110600.0,0.250686]
[1756837221271,0.18684234,110610.0,110600.0,0.248636]
[1756837221474,0.18989234,110610.0,110600.0,0.248636]
[1756837221701,0.60249548,110610.0,110600.0,0.248636]
[1756837222380,0.18989234,110610.0,110600.0,0.248636]
[1756837222510,0.60249548,110610.0,110600.0,0.248636]
[1756837222713,0.60249548,110610.0,110600.0,1e-08]
[1756837222941,0.60249548,110610.0,110600.0,0.15672001]
[1756837223185,0.60249548,110610.0,110600.0,1e-08]
[1756837223389,1.01509862,110610.0,110600.0,0.15672001]
[1756837223743,0.60249548,110610.0,110600.0,0.15672001]
[1756837224018,0.18989234,110610.0,110600.0,0.15672001]
[1756837224227,0.60249548,110610.0,110600.0,0.15672001]
[1756837225943,0.60249548,110610.0,110600.0,1e-08]
[1756837226155,0.60249548,110610.0,110600.0,0.15668001]
[1756837228634,0.18684234,110610.0,110600.0,0.15873001]
[1756837228831,0.59944548,110610.0,110600.0,0.15873001]
[1756837229056,0.18473234,110610.0,110600.0,0.253616]
[1756837230029,0.18684234,110610.0,110600.0,0.253616]
[1756837230280,0.18473234,110610.0,110600.0,0.253616]
[1756837231615,0.004,110610.0,110600.0,0.86798978]
[1756837231975,0.004,110610.0,110600.0,0.89516572]
[1756837232175,0.004,110610.0,110600.0,1.23516572]
[1756837232425,0.004,110610.0,110600.0,1.28395839]
[1756837232855,0.004,110610.0,110600.0,1.23516572]
[1756837233073,0.004,110610.0,110600.0,1.25903572]
[1756837233213,0.004,110610.0,110600.0,1.65903572]
[1756837233413,0.003,110610.0,110600.0,1.65903572]
[1756837233619,0.18092858,110620.0,110610.0,0.20175429]
[1756837233903,0.18092858,110620.0,110610.0,0.76001336]
[1756837234484,0.18092858,110620.0,110610.0,0.91665336]
[1756837235275,0.18192858,110620.0,110610.0,0.91765336]
[1756837236050,0.18192858,110620.0,110610.0,0.91965336]
[1756837237002,0.00112732,110620.0,110610.0,0.91965336]
[1756837237258,0.18192645,110620.0,110610.0,0.91965336]
[1756837237493,0.00112732,110620.0,110610.0,1.6722565]
[1756837238192,0.00112732,110620.0,110610.0,2.0722565]
[1756837238624,0.00112732,110620.0,110610.0,2.02353656]
[1756837238855,0.00112732,110620.0,110610.0,2.11311866]
[1756837239300,0.00112732,110620.0,110610.0,2.08890667]
[1756837239521,0.00112732,110620.0,110610.0,2.15372877]
[1756837240204,0.00112732,110620.0,110610.0,2.08890667]
[1756837240424,0.07354631,110660.0,110650.0,0.54168893]
[1756837240662,0.0736875,110660.0,110650.0,0.85914492]
[1756837240865,0.0736875,110660.0,110650.0,1.27174806]
[1756837241076,0.0736875,110660.0,110650.0,1.14231001]
[1756837241297,0.00014119,110660.0,110650.0,0.72970687]
[1756837241524,0.00014119,110660.0,110650.0,1.39785769]
[1756837241936,0.00014119,110660.0,110650.0,1.55445769]
[1756837242889,0.00014119,110660.0,110650.0,1.5635387]
[1756837243106,0.00014119,110660.0,110650.0,1.5655387]
[1756837243307,0.00014119,110660.0,110650.0,1.4089387]
[1756837243506,0.00114119,110660.0,110650.0,1.5674987]
[1756837243904,0.00114119,110660.0,110650.0,1.60867634]
[1756837245567,0.18187496,110660.0,110650.0,0.94052552]
[1756837245780,0.00114119,110660.0,110650.0,1.60867634]
[1756837247218,0.00114119,110660.0,110650.0,1.45211634]
[1756837247435,0.00114119,110660.0,110650.0,0.94048552]
[1756837247687,0.00114119,110660.0,110650.0,1.60863634]
[1756837247911,0.00114119,110660.0,110650.0,2.00863634]
[1756837248365,0.00114119,110660.0,110650.0,1.85211634]
[1756837248585,0.00114119,110660.0,110650.0,2.00863634]
[1756837249705,0.00114119,110660.0,110650.0,1.18396552]
[1756837249933,0.00114119,110660.0,110650.0,2.00863634]
[1756837252714,0.00114119,110660.0,110650.0,1.9674587]
[1756837253158,0.00114119,110660.0,110650.0,1.29926788]
[1756837253398,0.00114119,110660.0,110650.0,1.9674187]
[1756837253620,0.00114119,110660.0,110650.0,1.8109387]
[1756837253808,0.00114119,110660.0,110650.0,2.00836427]
[1756837254896,0.00114119,110660.0,110650.0,1.85188427]
[1756837255115,0.00114119,110660.0,110650.0,2.00836427]
[1756837255815,0.00114119,110660.0,110650.0,2.08312427]
[1756837256256,0.00114119,110660.0,110650.0,1.92664427]
[1756837256510,0.00114119,110660.0,110650.0,2.08308427]
[1756837256762,0.00114119,110660.0,110650.0,2.18174466]
[1756837256994,0.00114119,110660.0,110650.0,2.13308427]
[1756837257226,0.00301,110710.0,110700.0,0.20160729]
[1756837257466,0.00221119,110710.0,110700.0,0.51656328]
[1756837257697,0.18587334,110710.0,110700.0,0.51444328]
[1756837257956,0.00522119,110710.0,110700.0,0.51444328]
[1756837258176,0.18587334,110710.0,110700.0,0.51444328]
[1756837258596,0.18787334,110710.0,110700.0,0.55434077]
[1756837258802,0.00722119,110710.0,110700.0,0.55646077]
[1756837259012,0.19287334,110710.0,110700.0,0.56456224]
[1756837259229,0.18587334,110710.0,110700.0,0.56356224]
[1756837259679,0.00722119,110710.0,110700.0,0.56444224]
[1756837259887,0.18787334,110710.0,110700.0,0.56444224]
[1756837260307,0.18787334,110710.0,110700.0,0.22665377]
[1756837260712,0.18787334,110710.0,110700.0,0.38377377]
[1756837261176,0.18787334,110710.0,110700.0,0.56444224]
[1756837261384,0.00722119,110710.0,110700.0,0.56444224]
[1756837261801,0.18787334,110710.0,110700.0,0.56444224]
[1756837262004,0.18787334,110710.0,110700.0,0.22665377]
[1756837262436,0.18787334,110710.0,110700.0,0.38365377]
[1756837262828,0.18787334,110710.0,110700.0,0.22665377]
[1756837263049,0.18787334,110710.0,110700.0,0.38365377]
[1756837265274,0.18787334,110710.0,110700.0,0.2174323]
[1756837265509,0.85602416,110710.0,110700.0,0.31351599]
[1756837266133,0.85602416,110710.0,110700.0,0.06468]
[1756837266338,0.87926416,110710.0,110700.0,0.22156]
[1756837266790,0.87726416,110710.0,110700.0,0.22056]
[1756837267346,0.88226416,110710.0,110700.0,0.22156]
[1756837268168,0.88426416,110710.0,110700.0,0.22156]
[1756837268351,0.87926416,110710.0,110700.0,0.22056]
[1756837268563,0.18068479,110690.0,110680.0,0.12549631]
[1756837268777,0.18244091,110690.0,110680.0,0.31239599]
[1756837268983,0.18546091,110690.0,110680.0,0.31239599]
[1756837269193,0.18576479,110690.0,110680.0,0.31239599]
[1756837269396,0.18576479,110690.0,110680.0,0.32155469]
[1756837269609,0.18274479,110690.0,110680.0,0.52514463]
[1756837269813,0.18066847,110700.0,110690.0,0.20162361]
[1756837270018,0.18066847,110700.0,110690.0,0.11285481]
[1756837270222,0.18272847,110700.0,110690.0,0.11285481]
[1756837270630,0.18272847,110700.0,110690.0,0.2954896]
[1756837271072,0.18272847,110700.0,110690.0,0.11285481]
[1756837271464,0.18372847,110700.0,110690.0,0.2954896]
[1756837271715,0.18372847,110700.0,110690.0,0.2964896]
[1756837271922,0.18466847,110700.0,110690.0,0.2995696]
[1756837272169,0.18672847,110700.0,110690.0,0.11580481]
[1756837272595,0.18672847,110700.0,110690.0,0.2964896]
[1756837272821,0.18466847,110700.0,110690.0,0.2995696]